bitfinex-derivatives/quotes_BTCF0:USTF0_20250830
["timestamp","ask_amount","ask_price","bid_price","bid_amount"]
[1756543011730,0.08623507,108700.0,108690.0,2.4341531]
[1756543012328,0.01997266,108700.0,108690.0,2.4341531]
[1756543013328,0.01997266,108700.0,108690.0,2.78726115]
[1756543015232,0.01997266,108700.0,108690.0,2.4341531]
[1756543015933,0.01997266,108700.0,108690.0,2.78726115]
[1756543016435,0.04967913,108700.0,108690.0,2.78726115]
[1756543016822,0.06965179,108700.0,108690.0,2.78726115]
[1756543017228,0.04967913,108700.0,108690.0,2.78726115]
[1756543017429,0.06965179,108700.0,108690.0,2.78726115]
[1756543017625,0.04967913,108700.0,108690.0,2.78726115]
[1756543017829,0.06965179,108700.0,108690.0,2.78726115]
[1756543018137,0.04967913,108700.0,108690.0,2.78726115]
[1756543018329,0.06965179,108700.0,108690.0,2.78726115]
[1756543018530,0.04967913,108700.0,108690.0,2.78726115]
[1756543018734,0.06965179,108700.0,108690.0,2.78726115]
[1756543019035,0.04967913,108700.0,108690.0,2.78726115]
[1756543019435,0.06965179,108700.0,108690.0,2.78726115]
[1756543019736,0.04967913,108700.0,108690.0,2.78726115]
[1756543020235,0.06965179,108700.0,108690.0,2.78726115]
[1756543020437,0.04967913,108700.0,108690.0,2.78726115]
[1756543020637,0.06965179,108700.0,108690.0,2.78726115]
[1756543021136,0.04967913,108700.0,108690.0,2.78726115]
[1756543021436,0.06965179,108700.0,108690.0,2.78726115]
[1756543021636,0.04967913,108700.0,108690.0,2.78726115]
[1756543022037,0.06965179,108700.0,108690.0,2.78726115]
[1756543022238,0.04967913,108700.0,108690.0,2.78726115]
[1756543022433,0.06965179,108700.0,108690.0,2.78726115]
[1756543022633,0.04967913,108700.0,108690.0,1.93894115]
[1756543022934,0.04967913,108700.0,108690.0,2.4335131]
[1756543023238,0.06965179,108700.0,108690.0,2.4335131]
[1756543023432,0.04967913,108700.0,108690.0,2.4335131]
[1756543023833,0.06965179,108700.0,108690.0,2.4335131]
[1756543024033,0.04967913,108700.0,108690.0,2.4335131]
[1756543024234,0.06965179,108700.0,108690.0,2.4335131]
[1756543024435,0.04967913,108700.0,108690.0,2.4335131]
[1756543024635,0.06965179,108700.0,108690.0,2.4335131]
[1756543024838,0.04967913,108700.0,108690.0,2.4335131]
[1756543025040,0.06965179,108700.0,108690.0,2.4335131]
[1756543025539,0.04967913,108700.0,108690.0,2.4335131]
[1756543025742,0.06965179,108700.0,108690.0,2.4335131]
[1756543025940,0.04967913,108700.0,108690.0,2.4335131]
[1756543026140,0.06965179,108700.0,108690.0,2.4335131]
[1756543026344,0.04967913,108700.0,108690.0,2.4335131]
[1756543026544,0.06965179,108700.0,108690.0,2.4335131]
[1756543026837,0.04967913,108700.0,108690.0,2.4335131]
[1756543027240,0.06965179,108700.0,108690.0,2.4335131]
[1756543027438,0.04967913,108700.0,108690.0,2.4335131]
[1756543027638,0.06965179,108700.0,108690.0,2.4335131]
[1756543027839,0.04967913,108700.0,108690.0,2.4335131]
[1756543028040,0.06965179,108700.0,108690.0,2.4335131]
[1756543028243,0.04967913,108700.0,108690.0,2.4335131]
[1756543028444,0.06965179,108700.0,108690.0,2.4335131]
[1756543028739,0.04967913,108700.0,108690.0,2.4335131]
[1756543028934,0.06965179,108700.0,108690.0,2.4335131]
[1756543029335,0.04967913,108700.0,108690.0,2.4335131]
[1756543029541,0.06965179,108700.0,108690.0,2.4335131]
[1756543029754,0.04967913,108700.0,108690.0,2.4335131]
[1756543030043,0.04967913,108700.0,108690.0,2.78662115]
[1756543030245,0.06965179,108700.0,108690.0,2.78662115]
[1756543030450,0.04967913,108700.0,108690.0,2.78662115]
[1756543030650,0.06965179,108700.0,108690.0,2.78662115]
[1756543031148,0.04967913,108700.0,108690.0,2.78662115]
[1756543031446,0.01997266,108700.0,108690.0,2.78662115]
[1756543031648,0.09548777,108710.0,108700.0,0.1577789]
[1756543031846,0.11556962,108710.0,108700.0,1.57790305]
[1756543034051,0.11656962,108710.0,108700.0,1.57790305]
[1756543034246,0.11756962,108710.0,108700.0,1.57790305]
[1756543034938,0.11756962,108710.0,108700.0,0.5185789]
[1756543035142,0.11756962,108710.0,108700.0,1.57790305]
[1756543036037,0.04756185,108710.0,108700.0,1.57790305]
[1756543036243,0.11165082,108720.0,108710.0,0.06579]
[1756543036538,0.11165082,108720.0,108710.0,1.9804061]
[1756543037351,0.11365082,108720.0,108710.0,1.9804061]
[1756543037650,0.11565082,108720.0,108710.0,1.9804061]
[1756543038150,0.13998082,108720.0,108710.0,1.9804061]
[1756543040548,0.13898082,108720.0,108710.0,1.9804061]
[1756543040748,0.13698082,108720.0,108710.0,1.9804061]
[1756543046654,0.13698082,108720.0,108710.0,1.6196061]
[1756543046856,0.13698082,108720.0,108710.0,1.9804061]
[1756543048158,0.15677564,108720.0,108710.0,1.9804061]
[1756543049454,0.13244564,108720.0,108710.0,1.9804061]
[1756543051458,0.06666244,108720.0,108710.0,1.9804061]
[1756543051850,0.14948291,108720.0,108710.0,1.9804061]
[1756543052958,0.12968809,108720.0,108710.0,1.9804061]
[1756543053854,0.10420809,108720.0,108710.0,1.9804061]
[1756543054361,0.02718,108720.0,108710.0,1.9405361]
[1756543054960,0.02718,108720.0,108710.0,1.9806761]
[1756543056760,0.02718,108720.0,108710.0,1.1330761]
[1756543057059,0.02718,108720.0,108710.0,1.9804761]
[1756543057463,0.05161,108720.0,108710.0,1.27422]
[1756543057662,0.05161,108720.0,108710.0,1.62732805]
[1756543057961,0.07151009,108720.0,108710.0,0.77996805]
[1756543058161,0.07151009,108720.0,108710.0,1.62728805]
[1756543060761,0.04708009,108720.0,108710.0,1.62728805]
[1756543061164,0.01990009,108720.0,108710.0,1.62728805]
[1756543063467,0.01990009,108720.0,108710.0,1.62724805]
[1756543066669,0.08617522,108720.0,108710.0,1.62724805]
[1756543066966,0.01990009,108720.0,108710.0,1.62724805]
[1756543068269,0.01990009,108720.0,108710.0,1.27414]
[1756543068567,0.01990009,108720.0,108710.0,1.62724805]
[1756543074970,0.01990009,108720.0,108710.0,1.9803561]
[1756543075670,0.01990009,108720.0,108710.0,1.62724805]
[1756543076570,0.01990009,108720.0,108710.0,1.9803561]
[1756543076765,0.08617522,108720.0,108710.0,1.9803561]
[1756543077860,0.08617522,108720.0,108710.0,1.62724805]
[1756543078773,0.08617522,108720.0,108710.0,1.9803561]
[1756543079681,0.01990009,108720.0,108710.0,1.9803561]
[1756543080082,0.01990009,108720.0,108710.0,1.9800361]
[1756543080778,0.01990009,108720.0,108710.0,1.62692805]
[1756543083079,0.01990009,108720.0,108710.0,0.77996805]
[1756543083281,0.01990009,108720.0,108710.0,1.62684805]
[1756543085185,0.01990009,108720.0,108710.0,0.77996805]
[1756543085379,0.42534814,108720.0,108710.0,1.26600805]
[1756543085574,0.42534814,108720.0,108710.0,1.62680805]
[1756543091482,0.42534814,108720.0,108710.0,1.50252714]
[1756543091681,0.50819237,108720.0,108710.0,1.50252714]
[1756543093590,0.50819237,108720.0,108710.0,1.54217714]
[1756543094088,0.50819237,108720.0,108710.0,1.24729]
[1756543094288,0.50819237,108720.0,108710.0,1.60039805]
[1756543098394,0.42534814,108720.0,108710.0,1.60039805]
[1756543099989,0.04769009,108720.0,108710.0,1.60039805]
[1756543100185,0.01990009,108720.0,108710.0,1.60039805]
[1756543100391,0.01990009,108720.0,108710.0,1.9535061]
[1756543100989,0.01990009,108720.0,108710.0,2.3143061]
[1756543101193,0.10273417,108720.0,108710.0,2.3143061]
[1756543101697,0.0861661,108720.0,108710.0,2.3143061]
[1756543104198,0.0861661,108720.0,108710.0,1.60809]
[1756543104399,0.0861661,108720.0,108710.0,2.3143061]
[1756543104700,0.0861661,108720.0,108710.0,1.96119805]
[1756543105396,0.0861661,108720.0,108710.0,1.23959805]
[1756543105597,0.0861661,108720.0,108710.0,1.60039805]
[1756543105800,0.1139561,108720.0,108710.0,0.78029805]
[1756543106103,0.1139561,108720.0,108710.0,1.62673805]
[1756543108707,0.0861661,108720.0,108710.0,1.62673805]
[1756543110906,0.01990009,108720.0,108710.0,1.62673805]
[1756543114410,0.01990009,108720.0,108710.0,1.27363]
[1756543114710,0.01990009,108720.0,108710.0,1.62673805]
[1756543118013,0.01990009,108720.0,108710.0,1.26593805]
[1756543118312,0.01990009,108720.0,108710.0,1.62673805]
[1756543118912,0.01990009,108720.0,108710.0,1.26593805]
[1756543119112,0.01990009,108720.0,108710.0,1.62673805]
[1756543119803,0.10273417,108720.0,108710.0,1.62673805]
[1756543120613,0.10273417,108720.0,108710.0,1.26593805]
[1756543120914,0.10273417,108720.0,108710.0,1.62673805]
[1756543127416,0.10273417,108720.0,108710.0,1.57702666]
[1756543128419,0.01990009,108720.0,108710.0,1.57702666]
[1756543129521,0.01990009,108720.0,108710.0,1.60611666]
[1756543131620,0.01990009,108720.0,108710.0,1.24531666]
[1756543131821,0.01990009,108720.0,108710.0,1.60611666]
[1756543137121,0.01990009,108720.0,108710.0,1.95922471]
[1756543138827,0.01990009,108720.0,108710.0,1.25300861]
[1756543139126,0.01990009,108720.0,108710.0,1.95922471]
[1756543141633,0.07466408,108730.0,108720.0,0.02124]
[1756543141831,0.07466408,108730.0,108720.0,1.44136415]
[1756543142227,0.51045305,108750.0,108720.0,1.43319415]
[1756543142533,0.53608305,108750.0,108740.0,0.35310805]
[1756543142736,0.04184,108740.0,108730.0,1.08202487]
[1756543142939,0.04184,108740.0,108730.0,1.43513292]
[1756543143139,0.46861305,108750.0,108730.0,1.43513292]
[1756543143338,0.53608305,108750.0,108740.0,0.35310805]
[1756543143940,0.182975,108750.0,108740.0,0.35310805]
[1756543144139,0.53608305,108750.0,108740.0,0.35310805]
[1756543144331,0.53608305,108750.0,108740.0,0.7062161]
[1756543144638,0.42457805,108750.0,108740.0,0.7062161]
[1756543144937,0.54008305,108750.0,108740.0,0.7062161]
[1756543145138,0.53808305,108750.0,108740.0,0.7062161]
[1756543145437,0.42557805,108750.0,108740.0,0.7062161]
[1756543145637,0.54108305,108750.0,108740.0,0.7062161]
[1756543146135,0.54108305,108750.0,108740.0,0.35310805]
[1756543146840,0.54008305,108750.0,108740.0,0.35310805]
[1756543147339,0.42457805,108750.0,108740.0,0.35310805]
[1756543148241,0.42457805,108750.0,108740.0,0.7062161]
[1756543148757,0.42457805,108750.0,108740.0,0.35310805]
[1756543149042,0.42457805,108750.0,108740.0,0.7062161]
[1756543149249,0.42457805,108750.0,108740.0,0.42786226]
[1756543149439,0.07147,108750.0,108740.0,0.42786226]
[1756543149640,0.42457805,108750.0,108740.0,0.42786226]
[1756543150448,0.07147,108750.0,108740.0,0.42786226]
[1756543150745,0.42457805,108750.0,108740.0,0.42786226]
[1756543151551,0.50720912,108750.0,108740.0,0.42786226]
[1756543151846,0.50720912,108750.0,108740.0,0.78097031]
[1756543152242,0.15410107,108750.0,108740.0,0.78097031]
[1756543152543,0.07009853,108750.0,108740.0,1.76327977]
[1756543152940,0.004,108750.0,108740.0,1.76327977]
[1756543153548,0.02456355,108750.0,108740.0,1.76327977]
[1756543153742,0.02256355,108750.0,108740.0,1.76427977]
[1756543154144,0.02056355,108750.0,108740.0,1.76427977]
[1756543154350,0.02056355,108750.0,108740.0,1.76527977]
[1756543154555,0.02056355,108750.0,108740.0,1.76427977]
[1756543155550,0.06609853,108760.0,108740.0,1.76427977]
[1756543155751,0.08664752,108760.0,108750.0,1.9120961]
[1756543156142,0.06609853,108760.0,108750.0,1.9120961]
[1756543156752,0.04184,108770.0,108750.0,1.9120961]
[1756543156946,0.06747,108770.0,108760.0,1.0670161]
[1756543157644,0.15403048,108770.0,108760.0,1.0670161]
[1756543159247,0.15403048,108770.0,108760.0,1.9124161]
[1756543159448,0.50712397,108770.0,108760.0,0.84563]
[1756543159656,1.17608397,108770.0,108750.0,0.35354805]
[1756543159946,0.48659063,108760.0,108750.0,0.35425805]
[1756543160151,0.04184,108750.0,108740.0,1.19846805]
[1756543160351,0.86792397,108750.0,108740.0,0.00115]
[1756543160550,0.86792397,108750.0,108740.0,0.35425805]
[1756543161354,0.86792397,108750.0,108740.0,0.00115]
[1756543161355,0.86776453,108750.0,108740.0,0.00115]
[1756543162251,0.51481592,108750.0,108740.0,0.00115]
[1756543162456,0.51481592,108750.0,108740.0,0.00071]
[1756543162457,0.44880334,108750.0,108740.0,0.00071]
[1756543162647,0.04184,108740.0,108730.0,1.57738699]
[1756543162955,0.12736397,108740.0,108730.0,1.57738699]
[1756543163348,0.15099397,108740.0,108730.0,0.37401699]
[1756543163548,1.04875195,108740.0,108730.0,0.00231]
[1756543164054,1.20468317,108740.0,108730.0,0.006]
[1756543164955,1.20468317,108740.0,108730.0,0.01495]
[1756543165255,0.47443695,108740.0,108730.0,0.36789861]
[1756543165453,0.64952949,108740.0,108730.0,0.36789861]
[1756543165654,0.31435949,108740.0,108730.0,0.36789861]
[1756543167656,0.35619949,108740.0,108730.0,0.36789861]
[1756543168557,0.35619949,108740.0,108730.0,0.01495]
[1756543168756,0.35619949,108740.0,108730.0,0.36789861]
[1756543169156,0.29018137,108740.0,108730.0,0.36789861]
[1756543171559,0.35625951,108740.0,108730.0,0.36789861]
[1756543174565,0.35625951,108740.0,108730.0,0.38645625]
[1756543177766,0.29018137,108740.0,108730.0,0.38645625]
[1756543178068,0.35624671,108740.0,108730.0,0.38645625]
[1756543178867,0.29018137,108740.0,108730.0,0.38645625]
[1756543180167,0.2069477,108740.0,108730.0,0.48716037]
[1756543180570,0.14088549,108740.0,108730.0,0.48716037]
[1756543181570,0.14088549,108740.0,108730.0,0.41260202]
[1756543181768,0.14088549,108740.0,108730.0,0.43860202]
[1756543183065,0.14088549,108740.0,108730.0,0.49821037]
[1756543183766,0.14088549,108740.0,108730.0,0.53662037]
[1756543184563,0.14088549,108740.0,108730.0,0.18367176]
[1756543184871,0.14088549,108740.0,108730.0,0.53662037]
[1756543185459,0.22350224,108740.0,108730.0,0.53662037]
[1756543190173,0.14088549,108740.0,108730.0,0.53662037]
[1756543191072,0.4938341,108740.0,108730.0,0.16511412]
[1756543191377,0.8546341,108740.0,108730.0,0.10070412]
[1756543191760,0.8546341,108740.0,108730.0,0.12670412]
[1756543192872,0.8546341,108740.0,108730.0,0.16511412]
[1756543193277,1.20776739,108740.0,108730.0,0.51815507]
[1756543193875,1.20776739,108740.0,108730.0,0.16511412]
[1756543194074,1.20776739,108740.0,108730.0,0.47974507]
[1756543195073,1.29054764,108740.0,108730.0,0.47974507]
[1756543195272,0.85472977,108740.0,108730.0,0.12670412]
[1756543195476,0.93751002,108740.0,108730.0,0.12670412]
[1756543195675,0.93751002,108740.0,108730.0,0.16511412]
[1756543197178,0.58446574,108740.0,108730.0,0.16511412]
[1756543197471,0.93751002,108740.0,108730.0,0.16511412]
[1756543199181,0.93751002,108740.0,108730.0,0.06441]
[1756543200477,0.58446574,108740.0,108730.0,0.41745428]
[1756543200680,1.42878574,108740.0,108730.0,0.41745428]
[1756543200881,0.50168549,108740.0,108730.0,0.41745428]
[1756543201382,1.36622804,108740.0,108730.0,0.41745428]
[1756543201571,1.36622804,108740.0,108730.0,0.06441]
[1756543201774,1.36622804,108740.0,108730.0,0.41745428]
[1756543202780,1.44900829,108740.0,108730.0,0.41745428]
[1756543204683,1.44896829,108740.0,108730.0,0.41745428]
[1756543205685,1.44896829,108740.0,108730.0,0.37904428]
[1756543208888,1.60176829,108740.0,108730.0,0.37904428]
[1756543209389,1.44896829,108740.0,108730.0,0.41879428]
[1756543214888,1.44896829,108740.0,108730.0,0.37904428]
[1756543215293,1.44896829,108740.0,108730.0,0.41879428]
[1756543215796,1.44894199,108740.0,108730.0,0.41879428]
[1756543216191,1.44894199,108740.0,108730.0,0.37904428]
[1756543217297,1.80194982,108740.0,108730.0,0.37900783]
[1756543218595,2.25495765,108740.0,108730.0,0.10070412]
[1756543218796,2.25495765,108740.0,108730.0,0.02613989]
[1756543219601,2.50495765,108740.0,108730.0,0.02613989]
[1756543219902,2.70425732,108740.0,108730.0,0.02613989]
[1756543220387,2.73698207,108740.0,108730.0,0.02613989]
[1756543221199,2.73898207,108740.0,108730.0,0.02613989]
[1756543221697,0.02552,108710.0,108700.0,0.06628]
[1756543221998,0.1517032,108710.0,108700.0,0.77229566]
[1756543222192,0.1517032,108710.0,108700.0,0.79843555]
[1756543223199,0.50471103,108710.0,108700.0,0.09441989]
[1756543223399,0.1517032,108710.0,108700.0,0.44760845]
[1756543223692,0.86569176,108710.0,108700.0,0.09441989]
[1756543223899,0.79944481,108710.0,108700.0,0.02813989]
[1756543224099,0.88224927,108710.0,108700.0,0.05466989]
[1756543224301,0.88224927,108710.0,108700.0,0.05666989]
[1756543224499,0.79944481,108710.0,108700.0,0.05666989]
[1756543225696,0.79944481,108710.0,108700.0,0.02813989]
[1756543225895,0.80144481,108710.0,108700.0,0.02813989]
[1756543226396,0.80444481,108710.0,108700.0,0.02613989]
[1756543227796,0.90444481,108710.0,108700.0,0.02613989]
[1756543228004,1.3331574,108710.0,108700.0,0.02613989]
[1756543228397,0.03974,108700.0,108680.0,0.39293856]
[1756543228603,1.64340481,108700.0,108690.0,0.05266989]
[1756543230101,1.29021625,108700.0,108690.0,0.05266989]
[1756543230309,1.29321625,108700.0,108690.0,0.09241989]
[1756543231305,1.29321625,108700.0,108690.0,0.05266989]
[1756543232209,1.64640481,108700.0,108690.0,0.05266989]
[1756543232408,1.7124242,108700.0,108690.0,0.05266989]
[1756543232905,1.64640481,108700.0,108690.0,0.05266989]
[1756543233210,1.8124242,108700.0,108690.0,0.02613989]
[1756543233408,1.74640481,108700.0,108690.0,0.02613989]
[1756543233708,1.8124242,108700.0,108690.0,0.02613989]
[1756543234404,1.8124242,108700.0,108690.0,0.05314989]
[1756543234604,1.8124642,108700.0,108690.0,0.02613989]
[1756543236408,0.9684642,108700.0,108690.0,0.02613989]
[1756543236713,1.8124242,108700.0,108690.0,0.05314989]
[1756543237306,1.74640481,108700.0,108690.0,0.05314989]
[1756543239112,1.81238434,108700.0,108690.0,0.05314989]
[1756543240315,1.74640481,108700.0,108690.0,0.05314989]
[1756543240907,0.90244481,108700.0,108690.0,0.05314989]
[1756543241112,1.81238636,108700.0,108690.0,0.05314989]
[1756543244718,1.81238636,108700.0,108690.0,0.02613989]
[1756543245422,2.16578032,108700.0,108690.0,0.37943115]
[1756543246720,2.06578032,108700.0,108690.0,0.40644115]
[1756543250223,2.06566032,108700.0,108690.0,0.40644115]
[1756543251016,1.70486032,108700.0,108690.0,0.40644115]
[1756543251220,2.06566032,108700.0,108690.0,0.40644115]
[1756543251414,1.99967877,108700.0,108690.0,0.40644115]
[1756543252923,1.99967877,108700.0,108690.0,0.37943115]
[1756543254116,2.08248323,108700.0,108690.0,0.37943115]
[1756543254522,1.37590071,108700.0,108690.0,0.40644115]
[1756543254822,2.08248323,108700.0,108690.0,0.37943115]
[1756543257327,2.08248323,108700.0,108690.0,0.35329126]
[1756543257328,1.95993877,108700.0,108690.0,0.35329126]
[1756543257527,2.00091877,108700.0,108690.0,0.35329126]
[1756543257929,0.04098,108690.0,108680.0,0.43808947]
[1756543258128,0.52354174,108690.0,108680.0,0.43808947]
[1756543258317,0.44068751,108690.0,108680.0,0.43808947]
[1756543258517,0.44068751,108690.0,108680.0,0.41927126]
[1756543258729,0.44068751,108690.0,108680.0,0.77256252]
[1756543259425,0.44068751,108690.0,108680.0,0.06598]
[1756543259631,0.44068751,108690.0,108680.0,0.41927126]
[1756543259632,0.52354174,108690.0,108680.0,0.41927126]
[1756543260029,0.88434174,108690.0,108680.0,0.41927126]
[1756543263432,0.52354174,108690.0,108680.0,0.41927126]
[1756543263632,0.88434174,108690.0,108680.0,0.41927126]
[1756543264024,1.72794174,108690.0,108680.0,0.41927126]
[1756543265533,1.19689126,108690.0,108680.0,0.41927126]
[1756543265834,1.23730126,108690.0,108680.0,0.77256252]
[1756543266535,0.88401,108690.0,108680.0,0.77256252]
[1756543266834,1.23730126,108690.0,108680.0,0.77256252]
[1756543267536,1.29516126,108690.0,108680.0,0.06598]
[1756543267734,1.29516126,108690.0,108680.0,0.77256252]
[1756543268028,0.45156126,108690.0,108680.0,0.77256252]
[1756543268234,1.30259,108700.0,108690.0,0.10014]
[1756543268434,1.65588126,108700.0,108690.0,0.45343126]
[1756543269431,1.65788126,108700.0,108690.0,0.45343126]
[1756543269636,1.65888126,108700.0,108690.0,0.45343126]
[1756543271638,1.65888126,108700.0,108690.0,0.37884306]
[1756543272336,0.81536126,108700.0,108690.0,0.37884306]
[1756543272539,0.46207,108700.0,108690.0,0.37884306]
[1756543272836,0.94475,108700.0,108690.0,1.34293432]
[1756543273237,0.10127,108700.0,108690.0,1.34293432]
[1756543273441,0.04341,108700.0,108690.0,1.34293432]
[1756543273636,0.04341,108700.0,108690.0,0.6954218]
[1756543273839,0.04341,108700.0,108690.0,1.40200432]
[1756543274435,0.10127,108700.0,108690.0,1.04871306]
[1756543274635,0.18406199,108700.0,108690.0,1.04871306]
[1756543274840,0.89815325,108700.0,108690.0,0.68791306]
[1756543277044,0.53735325,108700.0,108690.0,0.68791306]
[1756543277542,0.5576571,108700.0,108690.0,0.68791306]
[1756543278745,0.20436584,108700.0,108690.0,0.68791306]
[1756543281043,0.5576571,108700.0,108690.0,0.68791306]
[1756543281546,0.62385538,108700.0,108690.0,0.68791306]
[1756543281745,0.54106339,108700.0,108690.0,0.68791306]
[1756543283651,0.18777213,108700.0,108690.0,0.68791306]
[1756543283947,0.54106339,108700.0,108690.0,0.68791306]
[1756543284147,0.18777213,108700.0,108690.0,0.68791306]
[1756543290052,0.18777213,108700.0,108690.0,1.04871306]
[1756543290246,0.54106339,108700.0,108690.0,0.68791306]
[1756543297559,0.18777213,108700.0,108690.0,1.04871306]
[1756543299761,0.12157385,108700.0,108690.0,1.04871306]
[1756543300169,0.02330385,108700.0,108690.0,1.14071136]
[1756543300569,0.02330385,108700.0,108690.0,1.49400262]
[1756543300765,0.02330385,108700.0,108690.0,1.89163306]
[1756543300970,0.08383385,108700.0,108690.0,1.89163306]
[1756543301674,0.08383385,108700.0,108690.0,1.04871306]
[1756543301868,0.08383385,108700.0,108690.0,1.89159306]
[1756543303470,0.08383385,108700.0,108690.0,1.98359136]
[1756543303674,0.02330385,108700.0,108690.0,1.98359136]
[1756543303876,0.02330385,108700.0,108690.0,2.08688262]
[1756543304574,0.08958586,108700.0,108690.0,2.08688262]
[1756543305376,0.02330385,108700.0,108690.0,2.08688262]
[1756543306280,0.0895824,108700.0,108690.0,2.08688262]
[1756543307378,0.0895824,108700.0,108690.0,1.3803001]
[1756543307574,0.0895824,108700.0,108690.0,2.08688262]
[1756543308580,0.0895824,108700.0,108690.0,2.33688262]
[1756543313079,0.02330385,108700.0,108690.0,2.33688262]
[1756543314285,0.08955797,108700.0,108690.0,2.33688262]
[1756543315285,0.02330385,108700.0,108690.0,2.33688262]
[1756543316584,0.08955497,108700.0,108690.0,2.33688262]
[1756543319188,0.08955497,108700.0,108690.0,2.08688262]
[1756543321690,0.10609584,108700.0,108690.0,2.0371639]
[1756543322489,0.10609584,108700.0,108690.0,1.1942839]
[1756543322788,0.10609584,108700.0,108690.0,2.0368039]
[1756543328691,0.02330385,108700.0,108690.0,2.0368039]
[1756543331587,0.08956111,108700.0,108690.0,2.0368039]
[1756543337297,0.08956111,108700.0,108690.0,1.2349439]
[1756543337498,0.08956111,108700.0,108690.0,2.0771439]
[1756543338199,0.08956111,108700.0,108690.0,1.2349439]
[1756543338398,0.08956111,108700.0,108690.0,2.0771439]
[1756543338999,0.08956111,108700.0,108690.0,1.7163439]
[1756543339201,0.08956111,108700.0,108690.0,2.0771439]
[1756543347300,0.08956111,108700.0,108690.0,1.2349439]
[1756543347505,0.08956111,108700.0,108690.0,2.0769839]
[1756543347708,0.14996111,108700.0,108690.0,2.0769839]
[1756543348508,0.08956111,108700.0,108690.0,2.0769839]
[1756543352407,0.14478111,108700.0,108690.0,1.2349439]
[1756543352811,0.14478111,108700.0,108690.0,2.0768639]
[1756543354106,0.08956111,108700.0,108690.0,2.0768639]
[1756543359914,0.08956111,108700.0,108690.0,1.7160639]
[1756543360115,0.08956111,108700.0,108690.0,2.0768639]
[1756543364419,0.02330385,108700.0,108690.0,2.0768639]
[1756543365619,0.02330385,108700.0,108690.0,2.0766238]
[1756543367617,0.08956111,108700.0,108690.0,2.0766238]
[1756543368418,0.02330385,108700.0,108690.0,2.0766238]
[1756543370124,0.02330385,108700.0,108690.0,1.1429456]
[1756543370320,0.02330385,108700.0,108690.0,1.9845456]
[1756543370518,0.08956111,108700.0,108690.0,1.9845456]
[1756543370921,0.08956111,108700.0,108690.0,2.0765438]
[1756543371626,0.02330385,108700.0,108690.0,2.0765438]
[1756543372722,0.02330385,108700.0,108690.0,1.7157438]
[1756543372916,0.02330385,108700.0,108690.0,2.0765438]
[1756543375627,0.03818,108700.0,108690.0,2.0765438]
[1756543377925,0.05522,108710.0,108690.0,2.04164072]
[1756543378228,0.0934,108710.0,108700.0,1.16381252]
[1756543378421,0.0934,108710.0,108700.0,1.11409553]
[1756543379719,0.0944,108710.0,108700.0,1.11409553]
[1756543380828,0.0954,108710.0,108700.0,1.11409553]
[1756543381725,0.16166304,108710.0,108700.0,1.11409553]
[1756543385726,0.16166304,108710.0,108700.0,0.45723]
[1756543385927,0.16166304,108710.0,108700.0,1.16381252]
[1756543387627,0.18260685,108710.0,108700.0,1.16381252]
[1756543388231,0.53589811,108710.0,108700.0,1.64433252]
[1756543388431,0.46963507,108710.0,108700.0,1.64433252]
[1756543389824,0.46963507,108710.0,108700.0,0.80301252]
[1756543390030,0.46963507,108710.0,108700.0,1.64429252]
[1756543390732,0.83043507,108710.0,108700.0,0.44972126]
[1756543390920,0.83043507,108710.0,108700.0,1.29100126]
[1756543391124,0.83043507,108710.0,108700.0,0.44972126]
[1756543393332,0.46963507,108710.0,108700.0,0.80301252]
[1756543394035,0.46963507,108710.0,108700.0,0.753294]
[1756543394233,0.55246602,108710.0,108700.0,0.753294]
[1756543400037,0.46963507,108710.0,108700.0,0.40000274]
[1756543401438,0.46963507,108710.0,108700.0,0.04671148]
[1756543401737,0.46963507,108710.0,108700.0,0.40000274]
[1756543405141,0.55246602,108710.0,108700.0,0.40000274]
[1756543406639,0.55246602,108710.0,108700.0,0.04671148]
[1756543406938,0.55246602,108710.0,108700.0,0.40000274]
[1756543409742,0.55246602,108710.0,108700.0,0.35028422]
[1756543412843,0.55246602,108710.0,108700.0,0.27570644]
[1756543416543,0.19917476,108710.0,108700.0,0.27570644]
[1756543416744,0.55246602,108710.0,108700.0,0.27570644]
[1756543418240,1.03997476,108710.0,108700.0,0.27570644]
[1756543418442,0.55246602,108710.0,108700.0,0.27570644]
[1756543418645,1.39326602,108710.0,108700.0,0.6289977]
[1756543420439,0.55246602,108710.0,108700.0,0.6289977]
[1756543420947,1.39322602,108710.0,108700.0,0.6289977]
[1756543421651,1.31039507,108710.0,108700.0,0.6289977]
[1756543423347,1.31039507,108710.0,108700.0,0.35329126]
[1756543425049,0.95710381,108710.0,108700.0,0.35329126]
[1756543425252,1.31039507,108710.0,108700.0,0.35329126]
[1756543427052,1.31031507,108710.0,108700.0,0.35329126]
[1756543427650,1.31031507,108710.0,108700.0,0.70658252]
[1756543428047,0.95702381,108710.0,108700.0,0.70658252]
[1756543428252,1.31031507,108710.0,108700.0,0.70658252]
[1756543428851,1.25509507,108710.0,108690.0,1.20188]
[1756543429151,0.12552136,108700.0,108690.0,1.20188]
[1756543429353,0.14646517,108700.0,108690.0,1.20188]
[1756543430147,0.14646517,108700.0,108690.0,1.90846252]
[1756543430450,0.14746517,108700.0,108690.0,1.90846252]
[1756543432542,0.15690531,108700.0,108690.0,1.90846252]
[1756543439972,0.15690531,108700.0,108690.0,1.90786252]
[1756543441173,0.19393531,108700.0,108690.0,0.3608]
[1756543441368,0.19393531,108700.0,108690.0,1.20124]
[1756543441574,0.19393531,108700.0,108690.0,0.71409126]
[1756543441771,0.19393531,108700.0,108690.0,1.55449126]
[1756543442974,0.19393531,108700.0,108690.0,0.3608]
[1756543443176,0.19393531,108700.0,108690.0,1.55449126]
[1756543443373,0.19393531,108700.0,108690.0,1.2012]
[1756543443673,0.19393531,108700.0,108690.0,1.55449126]
[1756543446981,0.19393531,108700.0,108690.0,0.71409126]
[1756543447178,0.19393531,108700.0,108690.0,1.55441126]
[1756543447371,0.12764395,108700.0,108690.0,1.20112]
[1756543447571,0.12764395,108700.0,108690.0,1.55441126]
[1756543447772,0.12764395,108700.0,108690.0,0.3608]
[1756543447972,0.48093521,108700.0,108690.0,1.55441126]
[1756543448476,0.19392577,108700.0,108690.0,1.55441126]
[1756543449078,0.12764395,108700.0,108690.0,1.55441126]
[1756543450874,0.19391889,108700.0,108690.0,1.55441126]
[1756543451478,0.19391889,108700.0,108690.0,0.71409126]
[1756543451674,0.19391889,108700.0,108690.0,1.55437126]
[1756543452381,0.12764395,108700.0,108690.0,1.55437126]
[1756543452677,0.48093521,108700.0,108690.0,1.55437126]
[1756543454782,0.28749745,108700.0,108690.0,1.55437126]
[1756543454974,0.28749745,108700.0,108690.0,1.61449126]
[1756543455781,0.28749745,108700.0,108690.0,1.2612]
[1756543455976,0.28749745,108700.0,108690.0,1.61449126]
[1756543456177,1.2842631,108710.0,108690.0,1.61449126]
[1756543456178,1.3213931,108710.0,108700.0,0.09783]
[1756543456479,1.73227436,108710.0,108700.0,0.08582036]
[1756543456882,1.74180812,108710.0,108700.0,0.08582036]
[1756543457280,1.74180812,108710.0,108700.0,0.43911162]
[1756543457978,1.74180812,108710.0,108690.0,0.3608]
[1756543458182,0.86756646,108700.0,108690.0,0.03771]